bitfinex-derivatives/quotes_BNBF0:USTF0_20250507
["timestamp","ask_amount","ask_price","bid_price","bid_amount"]
[1746637711635,1.29008469,599.21,598.39,0.951]
[1746637711836,1.29008469,599.2,598.39,0.951]
[1746637712032,1.29008469,599.19,598.39,0.951]
[1746637712235,2.29616886,599.18,598.39,0.951]
[1746637712437,1.29008469,599.17,598.39,0.951]
[1746637712638,1.29008469,599.16,598.39,0.951]
[1746637712937,1.29008469,599.15,598.39,0.951]
[1746637713238,1.29008469,599.14,598.39,0.951]
[1746637713437,1.29008469,599.13,598.39,0.951]
[1746637713739,2.29616886,599.12,598.39,0.951]
[1746637713934,1.29008469,599.11,598.39,0.951]
[1746637714135,2.29616886,599.1,598.39,0.951]
[1746637714333,1.29008469,599.09,598.39,0.951]
[1746637714534,1.29008469,599.08,598.39,0.951]
[1746637714837,1.29008469,599.07,598.39,0.951]
[1746637715038,1.29008469,599.06,598.39,0.951]
[1746637715238,1.29008469,599.05,598.39,0.951]
[1746637715534,1.29008469,599.04,598.39,0.951]
[1746637715738,1.29008469,599.03,598.39,0.951]
[1746637715938,2.29616886,599.02,598.39,0.951]
[1746637716235,1.29008469,599.01,598.4,0.613]
[1746637716438,1.29008469,599.0,598.4,0.613]
[1746637716638,1.29008469,598.99,598.4,0.613]
[1746637716839,1.29156835,598.98,598.4,0.613]
[1746637717040,2.29765252,598.97,598.4,0.613]
[1746637717237,1.29156835,598.96,598.4,0.613]
[1746637717441,2.29765252,598.95,598.4,0.613]
[1746637717640,1.29115127,598.94,598.4,0.613]
[1746637717841,1.29115127,598.93,598.4,0.613]
[1746637718141,2.29723544,598.92,598.4,0.613]
[1746637718340,1.29115127,598.91,598.4,0.613]
[1746637718537,1.29115127,598.9,598.4,0.613]
[1746637718841,2.29723544,598.89,598.4,0.613]
[1746637719037,1.29115127,598.88,598.4,0.613]
[1746637719242,2.29723544,598.87,598.4,0.613]
[1746637719438,2.29723544,598.86,598.4,0.613]
[1746637719642,1.29115127,598.85,598.4,0.613]
[1746637719843,2.29723544,598.84,598.4,0.613]
[1746637720042,1.29115127,598.83,598.4,0.613]
[1746637720239,2.29723544,598.82,598.4,0.613]
[1746637720443,1.29192799,598.81,598.4,0.613]
[1746637720744,2.29801216,598.8,598.4,0.613]
[1746637720940,1.29192799,598.79,598.4,0.613]
[1746637721138,1.29192799,598.78,598.4,0.613]
[1746637721341,2.29801216,598.77,598.4,0.613]
[1746637721540,1.29192799,598.76,598.4,0.613]
[1746637721741,1.29192799,598.75,598.4,0.613]
[1746637721942,2.29801216,598.74,598.4,0.613]
[1746637722143,1.00608417,598.74,598.4,0.613]
[1746637722340,1.00608417,598.73,598.4,0.613]
[1746637722938,1.00608417,598.72,598.4,0.613]
[1746637723541,0.2906564,599.29,598.4,0.613]
[1746637723745,1.28968858,599.28,598.4,0.613]
[1746637723945,1.28968858,599.27,598.4,0.613]
[1746637724145,1.28968858,599.26,598.4,0.613]
[1746637724446,1.28968858,599.25,598.4,0.613]
[1746637724647,1.28968858,599.24,598.4,0.613]
[1746637724946,2.29583583,599.23,598.4,0.613]
[1746637725145,1.28968858,599.22,598.4,0.613]
[1746637725345,1.28968858,599.21,598.4,0.613]
[1746637725546,1.28968858,599.2,598.4,0.613]
[1746637725746,1.28968858,599.19,598.4,0.613]
[1746637725947,1.28968858,599.18,598.4,0.613]
[1746637726148,2.29583583,599.17,598.4,0.613]
[1746637726347,1.28968858,599.16,598.4,0.613]
[1746637726549,1.28968858,599.15,598.4,0.613]
[1746637726751,1.28968858,599.14,598.4,0.613]
[1746637727048,2.29583583,599.13,598.4,0.613]
[1746637727349,2.29583583,599.12,598.4,0.613]
[1746637727549,1.28968858,599.11,598.4,0.613]
[1746637727849,2.29583583,599.1,598.4,0.613]
[1746637728044,1.28968858,599.09,598.4,0.613]
[1746637728349,2.29583583,599.08,598.4,0.613]
[1746637728649,1.28968858,599.07,598.4,0.613]
[1746637728850,1.28968858,599.06,598.4,1.533]
[1746637729050,1.28968858,599.05,598.4,1.533]
[1746637729250,1.28968858,599.04,598.4,1.533]
[1746637729551,1.28968858,599.03,598.4,1.533]
[1746637729753,1.28918011,599.02,598.4,1.533]
[1746637730051,1.28917938,599.01,598.4,1.533]
[1746637730751,0.29061392,599.29,598.4,1.533]
[1746637731148,1.28919981,599.28,598.4,1.533]
[1746637731454,1.28919981,599.27,598.4,1.533]
[1746637731646,1.28919981,599.26,598.4,1.533]
[1746637731848,1.28919981,599.25,598.4,1.533]
[1746637732047,1.28919981,599.24,598.4,1.533]
[1746637732347,2.29390612,599.23,598.4,1.533]
[1746637732550,1.28919981,599.22,598.4,1.533]
[1746637732749,1.28919981,599.21,598.4,1.533]
[1746637732955,1.28919981,599.2,598.4,1.533]
[1746637733148,1.28919981,599.19,598.4,1.533]
[1746637733349,1.28919981,599.18,598.4,1.533]
[1746637733549,1.28919981,599.17,598.4,1.533]
[1746637733753,1.28919981,599.16,598.4,1.533]
[1746637733950,1.28919981,599.15,598.4,1.533]
[1746637734153,1.28919981,599.14,598.4,1.533]
[1746637734356,1.28919981,599.13,598.4,1.533]
[1746637734557,1.28919981,599.12,598.4,1.533]
[1746637734851,1.28935292,599.11,598.4,1.533]
[1746637735053,1.28935292,599.1,598.4,1.533]
[1746637735355,1.28935292,599.09,598.4,1.533]
[1746637735551,1.28935292,599.08,598.4,1.533]
[1746637735752,1.28935292,599.07,598.4,1.533]
[1746637735956,1.28935292,599.06,598.4,1.533]
[1746637736154,1.28935292,599.05,598.4,1.533]
[1746637736352,1.28935292,599.04,598.4,1.533]
[1746637736554,1.28935292,599.03,598.4,1.533]
[1746637736753,1.28935292,599.02,598.4,1.533]
[1746637736954,1.28935292,599.01,598.4,1.533]
[1746637737157,1.28935292,599.0,598.4,1.533]
[1746637737353,1.28935292,598.99,598.4,1.533]
[1746637737582,1.28935292,598.98,598.4,1.533]
[1746637737757,1.28935292,598.97,598.4,1.533]
[1746637738059,1.28935292,598.96,598.4,1.533]
[1746637738256,1.28935292,598.95,598.4,1.533]
[1746637738556,1.28935292,598.94,598.4,1.533]
[1746637738752,1.28935292,598.93,598.4,1.533]
[1746637738953,1.28935292,598.92,598.4,1.533]
[1746637739152,1.28935292,598.91,598.4,1.533]
[1746637739456,1.28935292,598.9,598.4,1.533]
[1746637739652,1.28935292,598.89,598.4,1.533]
[1746637739856,1.28935292,598.88,598.4,1.533]
[1746637740053,1.28904729,598.87,598.4,1.533]
[1746637740255,1.28904729,598.86,598.4,1.533]
[1746637740455,1.28904729,598.85,598.4,1.533]
[1746637740652,1.28904729,598.84,598.4,1.533]
[1746637740957,1.28904729,598.83,598.4,1.533]
[1746637741157,1.28904729,598.82,598.4,1.533]
[1746637741451,0.29062606,599.29,598.4,1.533]
[1746637741657,1.28859581,599.28,598.4,1.533]
[1746637741853,1.28859581,599.27,598.4,1.533]
[1746637742056,1.28859581,599.26,598.4,2.199]
[1746637742255,1.28859581,599.25,598.4,2.199]
[1746637742555,1.28859581,599.24,598.4,2.199]
[1746637742752,1.28859581,599.23,598.4,2.199]
[1746637742953,1.28859581,599.22,598.4,2.199]
[1746637743157,1.28905964,599.21,598.4,2.199]
[1746637743358,1.28905964,599.2,598.4,2.199]
[1746637743657,1.28905964,599.19,598.4,2.199]
[1746637743852,1.28905964,599.18,598.4,2.199]
[1746637744050,0.33355014,599.61,598.4,2.199]
[1746637744051,1.28905964,599.17,598.4,2.199]
[1746637744255,1.28905964,599.16,598.4,2.199]
[1746637744451,0.29060421,599.27,598.4,2.199]
[1746637744452,1.28905964,599.15,598.4,2.199]
[1746637744650,1.28905964,599.14,598.4,3.18]
[1746637744854,1.28905964,599.13,598.4,3.18]
[1746637745058,1.28812191,599.12,598.4,3.18]
[1746637745356,1.28812191,599.11,598.4,3.18]
[1746637745557,1.28812191,599.1,598.4,3.18]
[1746637745859,1.28812191,599.09,598.4,3.18]
[1746637746054,1.28812191,599.08,598.4,3.18]
[1746637746256,1.28812191,599.07,598.4,3.18]
[1746637746454,1.28812191,599.06,598.4,3.18]
[1746637746658,1.28812191,599.05,598.4,3.18]
[1746637746953,1.28812191,599.04,598.4,3.18]
[1746637747158,1.28812191,599.03,598.4,3.18]
[1746637747354,1.28812191,599.02,598.4,3.18]
[1746637747554,1.28812191,599.01,598.4,3.18]
[1746637747754,1.28812191,599.0,598.4,3.18]
[1746637747954,1.28812191,598.99,598.4,3.18]
[1746637748155,1.28812191,598.98,598.4,3.18]
[1746637748358,1.28812191,598.97,598.4,3.18]
[1746637748561,1.28812191,598.96,598.4,3.18]
[1746637748760,1.28812191,598.95,598.4,3.18]
[1746637749061,1.28812191,598.94,598.4,1.586]
[1746637749260,1.28812191,598.93,598.4,1.586]
[1746637749460,1.28812191,598.92,598.4,1.586]
[1746637749756,1.28812191,598.91,598.4,1.586]
[1746637749957,1.28812191,598.9,598.4,1.586]
[1746637750161,1.28812191,598.89,598.4,1.586]
[1746637750361,1.28812191,598.88,598.4,1.586]
[1746637750560,1.28812191,598.87,598.4,1.586]
[1746637750858,0.29064548,599.24,598.4,1.586]
[1746637750859,1.28812191,598.86,598.4,1.586]
[1746637751062,1.28812191,598.85,598.4,1.586]
[1746637751256,1.28812191,598.84,598.4,1.586]
[1746637751459,1.28812191,598.83,598.4,1.586]
[1746637751662,1.28812191,598.82,598.4,1.586]
[1746637751862,1.28812191,598.81,598.4,1.586]
[1746637752060,1.28812191,598.8,598.4,1.586]
[1746637752259,1.28812191,598.79,598.4,1.586]
[1746637752457,1.28761351,598.78,598.4,1.586]
[1746637752662,1.28761351,598.77,598.4,1.586]
[1746637752858,1.28761351,598.76,598.4,1.586]
[1746637753059,1.28761351,598.75,598.4,1.586]
[1746637753259,1.28761351,598.74,598.4,1.586]
[1746637753459,1.28761351,598.73,598.4,1.586]
[1746637753659,1.28761351,598.72,598.4,1.586]
[1746637753857,0.29066368,599.24,598.4,1.586]
[1746637754164,1.28773355,599.23,598.4,1.586]
[1746637754465,1.28773355,599.22,598.4,1.586]
[1746637754659,1.28773355,599.21,598.4,1.586]
[1746637754863,1.28773355,599.2,598.4,1.586]
[1746637755064,1.28773355,599.19,598.4,1.586]
[1746637755360,1.28773355,599.18,598.4,1.586]
[1746637755564,1.28773355,599.17,598.4,1.586]
[1746637755760,1.28773355,599.16,598.4,1.586]
[1746637755966,1.28773355,599.15,598.4,1.586]
[1746637756161,1.28773355,599.14,598.4,1.586]
[1746637756367,1.28773355,599.13,598.4,1.586]
[1746637756661,1.28773355,599.12,598.4,1.586]
[1746637756865,1.28773355,599.11,598.4,1.586]
[1746637757067,1.28773355,599.1,598.4,1.586]
[1746637757266,1.28773355,599.09,598.4,1.586]
[1746637757466,1.28773355,599.08,598.4,1.586]
[1746637757663,1.28773355,599.07,598.4,1.586]
[1746637757863,1.28773355,599.06,598.4,1.586]
[1746637758069,1.28773355,599.05,598.4,1.586]
[1746637758265,1.28773355,599.04,598.4,1.586]
[1746637758469,1.28773355,599.03,598.4,1.586]
[1746637758766,0.33355014,599.61,598.4,1.586]
[1746637758767,1.28773355,599.02,598.4,1.586]
[1746637758967,1.28773355,599.01,598.4,1.586]
[1746637759166,1.28773355,599.0,598.4,1.586]
[1746637759367,1.28773355,598.99,598.4,1.586]
[1746637759670,1.28773355,598.98,598.4,1.586]
[1746637759866,1.28773355,598.97,598.4,1.586]
[1746637760068,1.28773355,598.96,598.4,1.586]
[1746637760269,1.28773355,598.95,598.4,1.586]
[1746637760469,1.28773355,598.94,598.4,1.586]
[1746637760673,1.28773355,598.93,598.4,0.666]
[1746637760974,1.28668006,598.92,598.4,0.666]
[1746637761174,1.28668006,598.91,598.4,0.666]
[1746637761371,1.28668006,598.9,598.4,0.666]
[1746637761575,1.28668006,598.89,598.4,0.666]
[1746637761772,1.28668006,598.88,598.4,0.666]
[1746637761975,1.28668006,598.87,598.4,0.666]
[1746637762171,1.28668006,598.86,598.4,0.666]
[1746637762369,1.28668006,598.85,598.4,0.666]
[1746637762669,1.28668006,598.84,598.4,0.666]
[1746637762872,1.2866719,598.83,598.4,0.666]
[1746637763074,1.2866719,598.82,598.4,0.666]
[1746637763268,1.2866719,598.81,598.4,0.666]
[1746637763474,1.2866719,598.8,598.4,0.666]
[1746637763670,1.2866719,598.79,598.4,0.666]
[1746637763873,1.2866719,598.78,598.4,0.666]
[1746637764074,1.2866719,598.77,598.4,0.666]
[1746637764276,1.2866619,598.76,598.4,0.666]
[1746637764476,1.2866619,598.75,598.4,0.666]
[1746637764677,1.2866619,598.74,598.4,0.666]
[1746637764877,1.286646,598.73,598.4,0.666]
[1746637765076,0.29064912,599.24,598.4,0.666]
[1746637765276,1.28663541,599.23,598.4,0.666]
[1746637765477,1.28663541,599.22,598.4,0.666]
[1746637765771,1.59344235,599.21,598.4,0.666]
[1746637765975,1.59344235,599.2,598.4,0.666]
[1746637766277,1.28663541,599.19,598.4,0.666]
[1746637766572,1.28663221,599.18,598.4,0.666]
[1746637766777,1.28663221,599.17,598.4,0.666]
[1746637766976,1.28663221,599.16,598.4,0.666]
[1746637767275,1.28663221,599.15,598.4,0.666]
[1746637767472,1.28663221,599.14,598.4,0.666]
[1746637767673,1.28663221,599.13,598.4,0.666]
[1746637767874,1.28663221,599.12,598.4,0.666]
[1746637768073,1.28663221,599.11,598.4,0.666]
[1746637768271,1.28663221,599.1,598.4,0.666]
[1746637768472,1.28663221,599.09,598.4,0.666]
[1746637768672,1.28663221,599.08,598.4,0.666]
[1746637768975,1.28663221,599.07,598.4,0.666]
[1746637769175,1.28663221,599.06,598.4,0.666]
[1746637769373,1.28663221,599.05,598.4,0.666]
[1746637769571,1.28663221,599.04,598.4,0.666]
[1746637769776,1.28663221,599.03,598.4,0.666]
[1746637770072,1.28663221,599.02,598.4,0.666]
[1746637770374,1.28663221,599.01,598.4,0.666]
[1746637770572,1.28663221,599.0,598.4,0.666]
[1746637770773,1.28663221,598.99,598.4,0.666]
[1746637770973,1.28663221,598.98,598.4,0.666]
[1746637771174,1.2848575,598.97,598.4,0.666]
[1746637771373,1.2848575,598.96,598.4,0.666]
[1746637771578,1.2848575,598.95,598.4,0.666]
[1746637771781,1.2848575,598.94,598.4,0.666]
[1746637771978,1.2848575,598.93,598.4,0.666]
[1746637772179,1.2848575,598.92,598.4,0.666]
[1746637772480,1.2848575,598.91,598.4,0.666]
[1746637772678,1.2848575,598.9,598.4,0.666]
[1746637772877,1.2848575,598.89,598.4,0.666]
[1746637773080,1.28482735,598.88,598.4,0.666]
[1746637773280,1.28482735,598.87,598.4,0.666]
[1746637773479,1.28482735,598.86,598.4,0.666]
[1746637773677,1.28482735,598.85,598.4,0.666]
[1746637773879,1.28482735,598.84,598.4,0.666]
[1746637774182,1.28482735,598.83,598.36,0.33424694]
[1746637774380,1.28420531,598.82,598.36,0.33424694]
[1746637774580,1.28420531,598.81,598.36,0.33424694]
[1746637774780,1.28420531,598.8,598.36,0.33424694]
[1746637774982,1.28420531,598.79,598.36,0.33424694]
[1746637775182,1.28414294,598.78,598.36,0.33424694]
[1746637775377,1.28414294,598.77,598.36,0.33424694]
[1746637775580,1.28414294,598.76,598.36,0.33424694]
[1746637775780,1.28414294,598.75,598.36,0.33424694]
[1746637775980,1.28414294,598.74,598.36,0.33424694]
[1746637776183,1.28414294,598.73,598.36,0.33424694]
[1746637776384,0.33355014,599.61,598.36,0.33424694]
[1746637776579,1.5898584,599.6,598.36,0.33424694]
[1746637776785,1.61660794,599.59,598.36,0.33424694]
[1746637776983,1.5898584,599.58,598.36,0.33424694]
[1746637777186,1.28304668,599.57,598.36,0.33424694]
[1746637777377,1.28304668,599.56,598.36,0.33424694]
[1746637777580,1.28304668,599.55,598.36,0.33424694]
[1746637777781,1.5898584,599.54,598.36,0.33424694]
[1746637777982,1.61664132,599.53,598.36,0.33424694]
[1746637778180,1.61664689,599.52,598.36,0.33424694]
[1746637778382,1.61665245,599.51,598.36,0.33424694]
[1746637778579,1.61665802,599.5,598.37,0.83]
[1746637778785,1.28304668,599.49,598.37,0.83]
[1746637778986,1.28304668,599.48,598.37,0.83]
[1746637779190,1.5898584,599.47,598.37,0.83]
[1746637779385,1.28304668,599.46,598.37,0.83]
[1746637779582,1.28304668,599.45,598.37,0.83]
[1746637779788,1.28304668,599.44,598.37,0.83]
[1746637780085,1.5898584,599.43,598.37,0.83]
[1746637780284,1.5898584,599.42,598.37,0.83]
[1746637780482,1.28304668,599.41,598.37,0.83]
[1746637780687,1.28304668,599.4,598.37,0.83]
[1746637780888,1.5898584,599.39,598.37,0.83]
[1746637781086,1.28304668,599.38,598.37,0.83]
[1746637781283,1.28304668,599.37,598.37,0.83]
[1746637781586,0.33361134,599.5,598.37,0.83]
[1746637781587,1.5898584,599.36,598.37,0.83]
[1746637781787,1.28304668,599.35,598.37,0.83]
[1746637781987,1.28304668,599.34,598.37,0.83]
[1746637782187,1.28304668,599.33,598.38,0.828]
[1746637782388,1.28304668,599.32,598.38,0.828]
[1746637782688,1.5898584,599.31,598.38,0.828]
[1746637782888,1.28304668,599.3,598.38,0.828]
[1746637783088,1.28304668,599.29,598.38,0.828]
[1746637783288,1.28304668,599.28,598.38,0.828]
[1746637783484,1.28304668,599.27,598.38,0.828]
[1746637783784,1.28304668,599.26,598.38,0.828]
[1746637783988,1.5898584,599.25,598.39,0.862]
[1746637784188,1.28304668,599.24,598.39,0.862]
[1746637784388,1.28304668,599.23,598.39,0.862]
[1746637784587,1.28304668,599.22,598.39,0.862]
[1746637784889,1.28304668,599.21,598.39,0.862]
[1746637785189,1.28304668,599.2,598.39,0.862]
[1746637785389,1.28304668,599.19,598.39,0.862]
[1746637785590,1.28304668,599.18,598.39,0.862]
[1746637785785,1.28304668,599.17,598.39,0.862]
[1746637785991,1.28304668,599.16,598.39,0.862]
[1746637786186,1.28304668,599.15,598.39,0.862]
[1746637786390,1.28304668,599.14,598.39,0.862]
[1746637786590,1.28304668,599.13,598.39,0.862]
[1746637786787,1.28304668,599.12,598.39,0.862]
[1746637786986,1.28304668,599.11,598.39,0.862]
[1746637787189,1.28304668,599.1,598.39,0.862]
[1746637787390,1.28304668,599.09,598.39,0.862]
[1746637787584,1.28304668,599.08,598.39,0.862]
[1746637787786,1.28304668,599.07,598.39,0.862]
[1746637787989,1.28304668,599.06,598.39,0.862]
[1746637788187,0.33361134,599.5,598.39,0.862]
[1746637788387,1.59205005,599.49,598.39,0.862]
[1746637788586,1.28522443,599.48,598.39,0.862]
[1746637788786,1.28522443,599.47,598.39,0.862]
[1746637789092,1.59205005,599.46,598.39,0.862]
[1746637789391,1.28522443,599.45,598.39,0.862]
[1746637789591,1.28522443,599.44,598.39,0.862]
[1746637789792,1.59205005,599.43,598.39,0.862]
[1746637790091,1.28522443,599.42,598.39,0.862]
[1746637790292,1.28522443,599.41,598.39,0.862]
[1746637790492,1.59205005,599.4,598.39,0.862]
[1746637790688,1.28522443,599.39,598.39,0.862]
[1746637790894,1.28522443,599.38,598.39,0.862]
[1746637791095,1.28522443,599.37,598.39,0.862]
[1746637791293,0.30682562,599.38,598.39,0.862]
[1746637791595,0.30682562,599.36,598.39,0.862]
[1746637791796,1.59607222,599.37,598.39,0.862]
[1746637792096,1.59607222,599.36,598.39,0.862]
[1746637792295,1.59609356,599.35,598.39,0.862]
[1746637792492,1.28926794,599.34,598.39,0.862]
[1746637792695,1.28926794,599.33,598.39,0.862]
[1746637792895,1.59609356,599.32,598.39,0.862]
[1746637793093,1.28926794,599.31,598.39,0.862]
[1746637793293,1.28926794,599.3,598.39,0.862]
[1746637793496,1.28926794,599.29,598.39,0.862]
[1746637793696,1.28926794,599.28,598.39,0.862]
[1746637793896,1.28926794,599.27,598.39,0.862]
[1746637794094,1.28926794,599.26,598.39,0.862]
[1746637794395,1.28926794,599.25,598.39,0.862]
[1746637794596,1.28926794,599.24,598.39,0.862]
[1746637794799,1.28926794,599.23,598.39,0.862]
[1746637795098,1.28926794,599.22,598.39,0.862]
[1746637795299,1.28926794,599.21,598.39,0.862]
[1746637795493,1.28926794,599.2,598.39,0.862]
[1746637795697,1.28926794,599.19,598.39,0.862]
[1746637795894,1.28926794,599.18,598.39,0.862]
[1746637796098,1.28926794,599.17,598.39,0.862]
[1746637796297,1.28926794,599.16,598.39,0.862]
[1746637796495,1.28926794,599.15,598.39,0.862]
[1746637796699,1.28926794,599.14,598.39,0.862]
[1746637796901,1.28812325,599.13,598.39,0.862]
[1746637797102,1.28812325,599.12,598.39,0.862]
[1746637797296,1.28812325,599.11,598.39,0.862]
[1746637797497,1.28812325,599.1,598.39,0.862]
[1746637797801,1.28812325,599.09,598.39,0.862]
[1746637797997,1.28807407,599.08,598.39,0.862]
[1746637798201,1.28807407,599.07,598.39,0.862]
[1746637798400,1.28807407,599.06,598.39,0.862]
[1746637798600,0.33361134,599.5,598.39,0.862]
[1746637798601,1.2885964,599.05,598.39,0.862]
[1746637798897,1.2885964,599.04,598.39,0.862]
[1746637799101,1.2885964,599.03,598.39,0.862]
[1746637799397,0.33361134,599.5,598.39,0.862]
[1746637799398,1.2885964,599.02,598.39,0.862]
[1746637799601,1.2885964,599.01,598.4,0.708]
[1746637799798,1.2885964,599.0,598.4,0.708]
[1746637800002,1.2885964,598.99,598.4,0.708]
[1746637800201,1.2885964,598.98,598.4,0.708]
[1746637800398,1.2885964,598.97,598.4,0.708]
[1746637800602,1.2885964,598.96,598.4,0.708]
[1746637800902,1.2885964,598.95,598.4,0.708]
[1746637801102,1.2885964,598.94,598.4,0.708]
[1746637801298,1.2885964,598.93,598.4,0.708]
[1746637801502,1.28672596,598.92,598.4,0.708]
[1746637801700,1.28672596,598.91,598.4,0.708]
[1746637801902,1.28671503,598.9,598.4,0.708]
[1746637802103,1.28671503,598.89,598.4,0.708]
[1746637802299,1.28671503,598.88,598.4,0.708]
[1746637802602,1.28671503,598.87,598.4,0.708]
[1746637802802,1.28671503,598.86,598.4,0.708]
[1746637803002,1.28671503,598.85,598.4,0.708]
[1746637803202,1.28671503,598.84,598.4,0.708]
[1746637803401,1.28671503,598.83,598.4,0.708]
[1746637803603,1.28671503,598.82,598.4,0.708]
[1746637803804,1.28671503,598.81,598.4,0.708]
[1746637804004,1.28671503,598.8,598.4,0.708]
[1746637804197,1.28671503,598.79,598.4,0.708]
[1746637804498,1.28671503,598.78,598.4,0.708]
[1746637804702,1.28671503,598.77,598.4,0.708]
[1746637804901,1.28671503,598.76,598.4,0.708]
[1746637805101,1.28671503,598.75,598.4,0.708]
[1746637805302,1.28671503,598.74,598.4,0.708]
[1746637805501,1.28671503,598.73,598.4,0.708]
[1746637805704,1.2854375,598.72,598.4,0.708]
[1746637805898,1.2854375,598.71,598.4,0.708]
[1746637806102,1.2854375,598.7,598.4,0.708]
[1746637806300,1.2854375,598.69,598.4,0.708]
[1746637806504,1.2854375,598.68,598.4,0.708]
[1746637806802,1.2854375,598.67,598.4,0.708]
[1746637807002,1.2854375,598.66,598.4,0.708]
[1746637807202,1.2854375,598.65,598.4,0.708]
[1746637807403,0.33361134,599.5,598.4,0.708]
[1746637807606,1.28544975,599.49,598.4,0.708]
[1746637807807,1.61907222,599.48,598.4,1.467]
[1746637808002,0.30685609,599.49,598.4,1.467]
[1746637808003,1.61907778,599.47,598.4,1.467]
[1746637808198,1.61908335,599.46,598.4,1.467]
[1746637808403,1.61908891,599.45,598.4,1.467]
[1746637808606,0.33364473,599.44,598.4,1.467]
[1746637808905,1.59230584,599.43,598.4,1.467]
[1746637809105,1.59230584,599.42,598.4,1.467]
[1746637809304,1.28544975,599.41,598.4,1.467]
[1746637809605,1.28544975,599.4,598.4,1.467]
[1746637809905,1.28544975,599.39,598.4,1.467]
[1746637810106,1.28544975,599.38,598.4,1.467]
[1746637810306,1.59230584,599.37,598.4,1.467]
[1746637810606,1.28544975,599.36,598.4,1.467]
[1746637810806,1.28544975,599.35,598.4,1.467]
[1746637811101,1.59230584,599.34,598.4,1.467]
[1746637811306,1.28544975,599.33,598.4,1.467]
[1746637811606,1.28544975,599.32,598.4,1.467]
[1746637811806,1.28544975,599.31,598.4,1.467]
[1746637812007,1.28544975,599.3,598.4,1.467]
[1746637812206,1.28544975,599.29,598.4,1.467]
[1746637812404,1.28544975,599.28,598.4,1.467]
[1746637812710,1.28544975,599.27,598.4,1.467]
[1746637812904,1.28544975,599.26,598.4,1.467]
[1746637813108,1.28544975,599.25,598.4,1.467]
[1746637813304,1.28544975,599.24,598.4,1.467]
[1746637813507,1.28544975,599.23,598.4,1.467]
[1746637813707,1.28544975,599.22,598.4,1.467]
[1746637813910,1.28544975,599.21,598.4,1.467]
[1746637814208,1.28544975,599.2,598.4,1.467]
[1746637814409,1.28544975,599.19,598.4,1.467]
[1746637814610,1.28544975,599.18,598.4,1.467]
[1746637814810,1.28544975,599.17,598.4,1.467]
[1746637815111,1.28544975,599.16,598.4,1.467]
[1746637815306,1.28544975,599.15,598.4,1.467]
[1746637815511,1.28544975,599.14,598.4,1.467]
[1746637815711,1.28544975,599.13,598.4,1.467]
[1746637815907,1.28544975,599.12,598.4,1.467]
[1746637816212,1.28544975,599.11,598.4,1.467]
[1746637816411,1.28544975,599.1,598.4,1.467]
[1746637816712,1.28544975,599.09,598.4,1.467]
[1746637816912,1.28544975,599.08,598.4,1.467]
[1746637817113,1.28544975,599.07,598.4,1.467]
[1746637817308,1.28544975,599.06,598.4,1.467]
[1746637817512,1.28544975,599.05,598.4,1.467]
[1746637817812,1.28544975,599.04,598.4,1.467]
[1746637818014,1.28544975,599.03,598.4,1.467]
[1746637818311,1.28544975,599.02,598.4,1.467]
[1746637818509,1.28544975,599.01,598.4,1.467]
[1746637818713,1.28544975,599.0,598.4,1.467]
[1746637818915,1.28415992,598.99,598.4,1.467]
[1746637819114,1.28415992,598.98,598.4,1.467]
[1746637819318,1.28415992,598.97,598.4,1.467]
[1746637819517,1.28415992,598.96,598.4,1.467]
[1746637819714,1.28415992,598.95,598.4,1.467]
[1746637819915,1.28415992,598.94,598.4,1.467]